{"text_format":"1","workbook":"xlsx","n_sheets":2,"sheets":["Лист2","Лист1"],"not_rendered":{"charts":0,"images":0,"macros":1,"external_links":0,"defined_names":1,"comments":0,"pivot_tables":0},"unopened":[],"bounds":{"document_bytes":16777216,"sheet_cells":100000,"rows_first":2000,"rows_last":500,"rows_between":2000,"halvings":0,"cell_chars":16384,"cell_head_chars":4096},"cells_cut":0,"cells_raw":0,"read":"whole","date_system":"1900"}

{"sheet":"Лист2","index":0,"n_rows":76,"n_cols":13,"rows_kept":76,"cut":false,"hidden":false,"merged":[[0,0,2,0],[0,1,2,1],[0,2,2,2],[0,11,2,11],[0,12,2,12],[1,5,1,6],[1,7,1,8],[1,9,1,10],[1,3,1,4]]}
["Дата и время поступления пробы","№ направления","№ пробы","Количество проб и параллельных определений",null,null,null,null,null,null,null,"Ф.И.О.","Дата и время выдачи результатов"]
[null,null,null,"Пробы по заявкам",null,"Исследовательские пробы",null,"ВЛК",null,"Общее количество"]
[null,null,null,"парал.","проб","парал.","проб","парал.","проб","парал.","проб"]
["2016-12-15T14:27:43",1,1,null,null,null,null,null,null,{"$f":"D4+F4+H4","v":0},{"$f":"E4+G4+I4","v":0}]
[null,null,null,null,null,null,null,null,null,0,0]
[null,null,null,null,null,null,null,null,null,0,0]
[null,null,null,null,null,null,null,null,null,0,0]
[null,null,null,null,null,null,null,null,null,0,0]
[null,null,null,null,null,null,null,null,null,0,0]
[null,null,null,null,null,null,null,null,null,0,0]
[null,null,null,null,null,null,null,null,null,0,0]
[null,null,null,null,null,null,null,null,null,0,0]
[null,null,null,null,null,null,null,null,null,0,0]
[null,null,null,null,null,null,null,null,null,0,0]
[null,null,null,null,null,null,null,null,null,0,0]
[null,null,null,null,null,null,null,null,null,0,0]
[null,null,null,null,null,null,null,null,null,0,0]
[null,null,null,null,null,null,null,null,null,0,0]
[null,null,null,null,null,null,null,null,null,0,0]
[null,null,null,null,null,null,null,null,null,0,0]
[null,null,null,null,null,null,null,null,null,0,0]
[null,null,null,null,null,null,null,null,null,0,0]
[null,null,null,null,null,null,null,null,null,0,0]
[null,null,null,null,null,null,null,null,null,0,0]
[null,null,null,null,null,null,null,null,null,0,0]
[null,null,null,null,null,null,null,null,null,0,0]
[null,null,null,null,null,null,null,null,null,0,0]
[null,null,null,null,null,null,null,null,null,0,0]
[null,null,null,null,null,null,null,null,null,0,0]
[null,null,null,null,null,null,null,null,null,0,0]
[null,null,null,null,null,null,null,null,null,0,0]
[null,null,null,null,null,null,null,null,null,0,0]
[null,null,null,null,null,null,null,null,null,0,0]
[null,null,null,null,null,null,null,null,null,0,0]
[null,null,null,null,null,null,null,null,null,0,0]
[null,null,null,null,null,null,null,null,null,{"$f":"D36+F36+H36","v":0},{"$f":"E36+G36+I36","v":0}]
[null,null,null,null,null,null,null,null,null,0,0]
[null,null,null,null,null,null,null,null,null,0,0]
[null,null,null,null,null,null,null,null,null,0,0]
[null,null,null,null,null,null,null,null,null,0,0]
[null,null,null,null,null,null,null,null,null,0,0]
[null,null,null,null,null,null,null,null,null,0,0]
[null,null,null,null,null,null,null,null,null,0,0]
[null,null,null,null,null,null,null,null,null,0,0]
[null,null,null,null,null,null,null,null,null,0,0]
[null,null,null,null,null,null,null,null,null,0,0]
[null,null,null,null,null,null,null,null,null,0,0]
[null,null,null,null,null,null,null,null,null,0,0]
[null,null,null,null,null,null,null,null,null,0,0]
[null,null,null,null,null,null,null,null,null,0,0]
[null,null,null,null,null,null,null,null,null,0,0]
[null,null,null,null,null,null,null,null,null,0,0]
[null,null,null,null,null,null,null,null,null,0,0]
[null,null,null,null,null,null,null,null,null,0,0]
[null,null,null,null,null,null,null,null,null,0,0]
[null,null,null,null,null,null,null,null,null,0,0]
[null,null,null,null,null,null,null,null,null,0,0]
[null,null,null,null,null,null,null,null,null,0,0]
[null,null,null,null,null,null,null,null,null,0,0]
[null,null,null,null,null,null,null,null,null,0,0]
[null,null,null,null,null,null,null,null,null,0,0]
[null,null,null,null,null,null,null,null,null,0,0]
[null,null,null,null,null,null,null,null,null,0,0]
[null,null,null,null,null,null,null,null,null,0,0]
[null,null,null,null,null,null,null,null,null,0,0]
[null,null,null,null,null,null,null,null,null,0,0]
[null,null,null,null,null,null,null,null,null,0,0]
[null,null,null,null,null,null,null,null,null,{"$f":"D68+F68+H68","v":0},{"$f":"E68+G68+I68","v":0}]
[null,null,null,null,null,null,null,null,null,0,0]
[null,null,null,null,null,null,null,null,null,0,0]
[null,null,null,null,null,null,null,null,null,0,0]
[null,null,null,null,null,null,null,null,null,0,0]
[null,null,null,null,null,null,null,null,null,0,0]
[null,null,null,null,null,null,null,null,null,0,0]
[null,null,null,null,null,null,null,null,null,0,0]
[null,null,null,null,null,null,null,null,null,0,0]

{"sheet":"Лист1","index":1,"n_rows":4,"n_cols":1,"rows_kept":4,"cut":false,"hidden":false,"merged":[]}
["Саша"]
["Коля"]
["Света"]
["Ива"]